bitfinex-derivatives/quotes_ETHF0:USTF0_20260303
["timestamp","ask_amount","ask_price","bid_price","bid_amount"]
[1772518081540,0.57762208,1992.8,1991.8,0.58287128]
[1772518081743,0.57762208,1992.8,1991.8,0.58677771]
[1772518082855,0.57762208,1992.6,1991.8,0.58677771]
[1772518087649,0.57762208,1992.6,1991.8,0.00390643]
[1772518088258,0.57762208,1992.4,1991.5,0.58287128]
[1772518089458,0.58258301,1992.4,1991.5,0.5877355]
[1772518093268,0.57762208,1992.2,1991.5,0.5877355]
[1772518094564,0.58258301,1992.4,1991.5,0.5877355]
[1772518096669,0.57762208,1992.3,1991.5,0.5877355]
[1772518104771,0.53843939,1992.3,1991.5,0.5877355]
[1772518106368,0.00496093,1992.4,1991.5,0.5877355]
[1772518106568,0.00496093,1992.4,1991.6,0.57440958]
[1772518106974,0.54340032,1992.4,1991.6,0.57440958]
[1772518108677,0.53843939,1991.7,1991.0,0.57440958]
[1772518109277,0.53843939,1991.7,1990.8,0.57440958]
[1772518109676,0.53843939,1991.7,1990.8,0.57812098]
[1772518110578,0.53843939,1992.2,1990.8,0.57812098]
[1772518110882,0.53843939,1992.3,1991.2,0.57440958]
[1772518111078,0.53843939,1992.3,1991.4,0.57440958]
[1772518111275,0.00496093,1992.4,1991.4,0.57440958]
[1772518111478,0.54340032,1992.4,1991.4,0.57440958]
[1772518116785,0.53843939,1992.2,1991.4,0.57440958]
[1772518117381,0.53843939,1992.2,1990.9,7.316]
[1772518117382,0.53843939,1992.2,1991.0,0.57440958]
[1772518117882,0.53843939,1992.0,1991.0,0.57440958]
[1772518122193,0.53843939,1991.9,1991.0,0.57440958]
[1772518122690,0.53843939,1991.7,1991.0,0.57440958]
[1772518123687,0.25112,1991.6,1991.0,0.57440958]
[1772518123887,0.53843939,1991.5,1990.8,0.57812098]
[1772518124483,0.53843939,1991.2,1990.5,0.57440958]
[1772518124689,0.53843939,1991.2,1989.8,0.57440958]
[1772518125091,0.25126,1990.5,1989.3,13.15272625]
[1772518125390,6.18002,1990.9,1989.2,16.1814635]
[1772518125391,0.53843939,1990.9,1989.6,0.57440958]
[1772518125689,0.54205162,1990.9,1989.6,0.5786084]
[1772518126081,0.54205162,1990.9,1989.7,0.57440958]
[1772518126887,0.00361223,1990.9,1990.0,0.57440958]
[1772518127491,0.00361223,1990.9,1990.3,0.57440958]
[1772518128587,0.55208839,1991.3,1990.3,0.57440958]
[1772518129095,0.55208839,1991.3,1990.4,0.59323362]
[1772518129494,0.55622412,1991.3,1990.4,0.59323362]
[1772518129689,0.00413573,1991.3,1990.6,0.59323362]
[1772518129889,0.55208839,1991.5,1990.6,0.59323362]
[1772518130092,0.25107,1992.0,1990.9,0.59323362]
[1772518130093,0.55208839,1991.7,1990.9,0.59323362]
[1772518130997,0.55741469,1991.7,1990.9,0.59323362]
[1772518132394,0.0053263,1991.7,1990.9,0.59323362]
[1772518132900,0.55741469,1991.7,1990.9,0.59323362]
[1772518134190,0.0053263,1991.7,1990.9,0.59323362]
[1772518138303,0.0053263,1991.7,1990.8,1.4833555]
[1772518139303,0.0053263,1991.7,1990.9,7.297]
[1772518140605,1.512,1992.3,1991.4,1.4833555]
[1772518140805,0.251,1992.6,1991.4,1.4833555]
[1772518141005,0.251,1992.6,1991.7,1.4833555]
[1772518141205,1.512,1992.9,1991.7,1.4833555]
[1772518141502,0.25094,1993.1,1992.0,1.4833555]
[1772518141705,0.00626909,1992.9,1992.0,1.4833555]
[1772518142097,0.25097,1992.8,1991.7,0.00605759]
[1772518142303,0.55208839,1992.7,1991.8,0.59323362]
[1772518142501,0.55208839,1992.7,1992.1,0.59323362]
[1772518142700,0.55208839,1992.7,1992.0,1.4833555]
[1772518142701,0.25085,1993.8,1992.4,0.59323362]
[1772518142999,0.55208839,1993.7,1992.4,0.59323362]
[1772518143807,0.55611693,1993.7,1992.4,0.59323362]
[1772518144308,0.55611693,1993.7,1992.7,0.59323362]
[1772518146905,0.55611693,1993.7,1992.8,0.59323362]
[1772518148510,0.00402854,1993.7,1993.0,0.59323362]
[1772518149011,0.55208839,1993.9,1993.3,0.59323362]
[1772518149613,0.55208839,1994.6,1993.3,0.59323362]
[1772518149811,0.55208839,1994.4,1993.3,0.59323362]
[1772518150012,0.55767346,1994.4,1993.3,0.59699532]
[1772518150710,0.55208839,1994.2,1993.3,0.0037617]
[1772518151512,1.48894057,1994.4,1992.9,7.289]
[1772518151513,0.55208839,1994.0,1992.9,7.88223362]
[1772518152306,0.55208839,1994.0,1993.0,0.59323362]
[1772518152506,0.55208839,1994.0,1993.0,0.5987676]
[1772518156214,0.55208839,1993.8,1993.0,0.5987676]
[1772518159219,0.57206226,1993.6,1993.0,0.00553398]
[1772518159523,0.57206226,1993.6,1992.8,0.55086884]
[1772518160412,0.57206226,1993.6,1992.8,0.55440484]
[1772518162520,1.512,1993.7,1993.0,0.55086884]
[1772518164120,0.2508,1994.2,1993.0,0.55086884]
[1772518164121,2.08406226,1994.1,1993.0,0.55086884]
[1772518164523,0.57206226,1994.0,1993.0,0.55086884]
[1772518175732,0.57206226,1994.0,1993.3,0.55086884]
[1772518184245,0.57206226,1994.0,1993.0,0.55086884]
[1772518184546,0.57206226,1994.0,1993.1,0.55086884]
[1772518184745,0.57206226,1994.2,1993.3,0.55086884]
[1772518185045,0.57764733,1994.4,1993.5,0.55086884]
[1772518185950,0.57206226,1994.7,1993.7,0.55086884]
[1772518186247,0.57206226,1994.7,1993.9,0.55086884]
[1772518186643,0.57206226,1995.1,1993.9,0.55086884]
[1772518187045,0.57761915,1995.1,1993.9,0.55086884]
[1772518188447,0.58023982,1994.9,1993.9,0.55086884]
[1772518188749,0.58023982,1994.9,1993.7,0.57526786]
[1772518190750,0.58023982,1994.7,1993.6,7.75626786]
[1772518191152,0.58023982,1994.6,1993.7,0.57526786]
[1772518192650,0.58023982,1994.4,1993.6,7.181]
[1772518192950,0.58023982,1994.4,1993.7,0.57526786]
[1772518194852,0.58023982,1994.4,1993.2,0.57526786]
[1772518200852,0.58023982,1994.2,1993.2,0.57526786]
[1772518201852,0.58023982,1994.6,1993.4,0.57526786]
[1772518202557,0.58023982,1994.6,1993.5,0.57526786]
[1772518203954,0.58023982,1994.4,1993.5,0.57526786]
[1772518204356,0.58023982,1994.3,1993.4,7.73226786]
[1772518204660,0.25079,1994.2,1992.9,0.57526786]
[1772518204960,0.58023982,1994.1,1992.9,0.57526786]
[1772518207565,0.58023982,1993.7,1992.9,0.57526786]
[1772518207863,0.58411078,1993.7,1992.9,0.57526786]
[1772518209464,0.58411078,1993.7,1992.8,0.57880386]
[1772518212156,0.58023982,1993.6,1992.8,0.57880386]
[1772518212358,0.58023982,1993.4,1992.8,0.003536]
[1772518212567,0.58023982,1993.4,1992.4,0.57526786]
[1772518213564,0.58023982,1993.4,1992.4,0.57941182]
[1772518214463,0.58023982,1993.2,1992.4,0.57941182]
[1772518216965,0.57125819,1993.6,1992.4,0.57941182]
[1772518218067,0.56185034,1993.4,1992.4,0.57941182]
[1772518222271,0.56185034,1993.2,1992.4,0.57941182]
[1772518226071,0.56185034,1993.2,1992.4,0.58766215]
[1772518228469,0.56185034,1993.0,1992.4,0.00414396]
[1772518228767,0.56185034,1993.0,1992.1,0.58351819]
[1772518229772,0.56185034,1993.0,1992.1,0.58734868]
[1772518231668,1.512,1993.4,1992.1,0.58734868]
[1772518231669,0.56185034,1992.8,1992.1,0.58734868]
[1772518239279,1.512,1993.2,1992.1,0.58734868]
[1772518239280,0.56185034,1993.0,1992.1,0.58734868]
[1772518244174,0.56185034,1992.8,1992.1,0.58734868]
[1772518245378,0.56185034,1992.6,1992.0,0.58351819]
[1772518245571,0.56185034,1992.6,1991.4,0.58351819]
[1772518246480,0.56185034,1992.6,1991.4,0.58709213]
[1772518246682,0.56185034,1992.4,1991.4,0.58709213]
[1772518252188,0.56185034,1992.4,1991.7,0.59629348]
[1772518252582,0.56185034,1992.4,1992.0,0.59629348]
[1772518253587,0.56185034,1992.4,1991.9,0.59629348]
[1772518254488,0.56185034,1992.4,1992.0,0.59629348]
[1772518254794,1.27992411,1993.0,1992.4,0.59629348]
[1772518254795,0.58450997,1992.8,1992.4,0.59629348]
[1772518254993,0.58450997,1993.3,1992.6,0.59629348]
[1772518255191,0.58450997,1993.3,1992.8,0.59629348]
[1772518255394,1.61348408,1993.3,1992.8,0.60229632]
[1772518255692,0.58450997,1993.2,1992.8,0.00600284]
[1772518256493,0.58450997,1993.2,1992.5,0.59629348]
[1772518257394,0.58450997,1993.2,1992.5,0.60185957]
[1772518258194,0.58450997,1993.5,1992.6,1.48091864]
[1772518258394,0.58450997,1993.5,1992.7,0.59629348]
[1772518258694,0.58450997,1993.6,1992.7,0.59629348]
[1772518260789,0.00387096,1993.7,1992.7,0.59629348]
[1772518260990,0.00387096,1993.7,1993.0,0.59629348]
[1772518261198,0.58450997,1994.0,1993.3,0.59629348]
[1772518262198,0.58872395,1994.0,1993.3,0.59629348]
[1772518263591,0.00421398,1994.0,1993.3,0.59629348]
[1772518263792,0.58450997,1994.9,1993.6,0.59629348]
[1772518264292,0.58450997,1994.7,1993.6,0.59629348]
[1772518264695,0.58875342,1994.7,1993.6,0.59629348]
[1772518266997,0.58450997,1994.6,1993.6,0.59629348]
[1772518274796,0.58450997,1994.4,1993.6,0.59629348]
[1772518275494,0.58450997,1994.0,1992.9,0.59629348]
[1772518277400,0.58450997,1993.8,1992.9,0.59629348]
[1772518284808,2.10574784,1994.1,1992.9,0.59629348]
[1772518285009,0.59374784,1994.0,1992.9,0.59629348]
[1772518285605,1.512,1994.1,1992.9,0.59629348]
[1772518285807,0.59374784,1994.0,1992.9,0.59629348]
[1772518286104,0.59374784,1994.0,1993.1,0.59358004]
[1772518286406,0.59374784,1994.0,1992.5,6.95256609]
[1772518286407,0.59374784,1993.8,1992.6,0.59358004]
[1772518288606,0.59374784,1993.6,1992.6,0.59358004]
[1772518289510,0.59374784,1993.6,1992.8,0.59358004]
[1772518293816,0.59374784,1993.8,1992.8,0.59358004]
[1772518301922,0.59374784,1993.8,1992.9,0.59358004]
[1772518304520,0.59374784,1993.6,1992.7,0.59358004]
[1772518305020,0.59374784,1993.5,1992.7,0.59358004]
[1772518305827,0.59374784,1993.1,1992.1,0.59358004]
[1772518306918,0.59986268,1993.1,1992.1,0.59959896]
[1772518309119,0.59986268,1993.1,1992.1,0.00601892]
[1772518309316,0.59986268,1993.1,1992.1,0.5566969]
[1772518309518,0.54816817,1993.0,1992.1,0.5566969]
[1772518309722,0.54816817,1992.9,1992.1,0.5566969]
[1772518310527,0.54816817,1992.7,1991.8,0.55067798]
[1772518310824,0.25097,1992.8,1991.6,6.575]
[1772518310825,0.54816817,1992.5,1991.6,7.12567798]
[1772518311130,0.54816817,1992.5,1991.6,0.55067798]
[1772518311634,0.54816817,1992.5,1991.6,0.55685723]
[1772518312126,0.54816817,1992.3,1991.6,0.55685723]
[1772518312628,0.54816817,1992.5,1991.6,0.55685723]
[1772518319538,0.54816817,1992.4,1991.6,0.55685723]
[1772518319733,0.54816817,1992.2,1991.6,0.00617925]
[1772518320431,0.54816817,1992.2,1991.3,0.55067798]
[1772518320936,0.54816817,1992.0,1991.3,0.55067798]
[1772518321536,0.54816817,1992.0,1991.3,0.55681063]
[1772518322936,0.54816817,1991.8,1991.3,2.65e-06]
[1772518323135,0.54816817,1991.8,1990.8,0.55067798]
[1772518323836,1.512,1992.0,1990.8,0.55067798]
[1772518323837,0.54816817,1991.6,1990.8,0.55067798]
[1772518324140,0.55338598,1991.6,1990.8,0.55562939]
[1772518325038,0.54816817,1992.5,1991.2,0.55067798]
[1772518326140,0.55260748,1992.5,1991.2,0.55067798]
[1772518327037,0.54816817,1992.3,1991.2,0.55067798]
[1772518327444,0.54816817,1992.1,1990.9,0.55067798]
[1772518327941,0.54816817,1991.5,1990.8,0.55562939]
[1772518330838,0.54816817,1992.0,1990.8,0.55562939]
[1772518332834,0.54816817,1992.0,1990.9,0.55067798]
[1772518333034,0.54816817,1992.0,1991.1,0.55067798]
[1772518333246,0.54816817,1992.4,1991.1,0.55067798]
[1772518335744,0.54816817,1992.4,1991.2,0.55067798]
[1772518336746,0.54816817,1992.4,1991.3,0.55067798]
[1772518337347,0.54816817,1992.2,1991.3,0.55067798]
[1772518338244,0.54816817,1992.2,1991.0,0.56099739]
[1772518338451,0.54299285,1992.0,1991.0,0.56099739]
[1772518343159,0.54299285,1992.0,1990.8,0.00495141]
[1772518343160,0.54299285,1991.8,1990.8,0.5659488]
[1772518343364,0.54299285,1991.6,1990.8,0.5659488]
[1772518343766,0.54299285,1991.6,1990.8,0.00495141]
[1772518344360,0.54299285,1991.4,1990.8,0.00495141]
[1772518344566,0.54299285,1991.4,1990.6,0.56099739]
[1772518345560,0.54299285,1991.4,1990.6,0.56618431]
[1772518348064,0.54299285,1991.4,1990.2,6.786]
[1772518348065,0.54299285,1991.4,1990.2,0.56099739]
[1772518348264,0.54299285,1991.2,1990.2,0.56099739]
[1772518349370,0.54299285,1991.2,1990.2,0.56684497]
[1772518357275,0.54299285,1991.6,1990.4,0.56099739]
[1772518357874,0.54299285,1991.6,1990.6,0.56099739]
[1772518358078,0.54299285,1991.6,1990.7,0.56099739]
[1772518371586,0.25113,1991.5,1990.7,0.56099739]
[1772518371788,0.57204737,1991.4,1990.4,0.58494998]
[1772518376092,0.57204737,1991.4,1990.7,0.58494998]
[1772518380985,0.57204737,1991.9,1990.7,0.58494998]
[1772518381185,0.57204737,1991.9,1991.0,0.58494998]
[1772518381390,0.57204737,1991.7,1990.8,0.58494998]
[1772518384198,7.65915736,1992.1,1990.8,0.58494998]
[1772518384199,0.57204737,1991.5,1990.8,0.58494998]
[1772518386001,0.57204737,1991.5,1990.6,0.58494998]
[1772518386800,0.57204737,1991.3,1990.5,0.58494998]
[1772518388204,0.57204737,1991.3,1990.2,0.59079756]
[1772518388399,0.57204737,1991.1,1990.2,0.59079756]
[1772518388600,0.57688412,1991.1,1990.2,0.59079756]
[1772518391399,0.57204737,1990.9,1989.7,0.58494998]
[1772518391603,0.57204737,1990.7,1989.7,0.58494998]
[1772518392705,0.57204737,1990.7,1989.7,0.59060001]
[1772518392900,0.57204737,1990.7,1989.7,7.27960001]
[1772518393094,0.57204737,1990.7,1989.8,0.58494998]
[1772518393505,0.57204737,1990.5,1989.7,6.69465003]
[1772518393700,0.57204737,1990.5,1989.7,7.27960001]
[1772518393901,0.57204737,1990.5,1989.8,0.58494998]
[1772518399911,1.48302736,1991.0,1990.0,0.56855121]
[1772518399912,0.56549017,1991.0,1990.0,0.56855121]
[1772518401809,0.56549017,1991.0,1990.2,0.56855121]
[1772518403910,0.00483675,1991.1,1990.3,0.56855121]
[1772518404616,0.00483675,1991.1,1990.2,1.48302736]
[1772518404617,0.00483675,1991.1,1990.6,0.56855121]
[1772518404917,0.56549017,1991.4,1990.6,0.56855121]
[1772518406015,0.56938426,1991.4,1990.6,0.56855121]
[1772518406217,0.00389409,1991.4,1990.6,0.56855121]
[1772518406411,0.56549017,1991.7,1990.9,0.56855121]
[1772518406618,0.56549017,1991.7,1991.0,0.56855121]
[1772518407513,0.57012316,1991.7,1991.0,0.56855121]
[1772518407813,0.00463299,1991.7,1991.0,0.56855121]
[1772518408816,0.56549017,1991.9,1991.2,0.56855121]
[1772518409918,0.5701392,1991.9,1991.2,0.57312334]
[1772518418420,0.00464903,1991.9,1991.2,0.57312334]
[1772518418821,0.5701392,1991.9,1991.2,0.57312334]
[1772518426527,0.5701392,1991.9,1991.5,0.56855121]
[1772518426829,1.28048457,1992.2,1991.5,0.56855121]
[1772518426830,0.56549017,1992.1,1991.5,0.56855121]
[1772518427932,0.56938537,1992.1,1991.5,0.56855121]
[1772518429934,1.512,1992.4,1991.5,0.56855121]
[1772518429935,0.5606222,1992.4,1991.5,0.56855121]
[1772518430831,0.5606222,1992.4,1991.2,0.00457213]
[1772518430832,0.5606222,1992.2,1991.4,0.54057522]
[1772518435533,0.5606222,1992.6,1991.6,0.54057522]
[1772518436435,0.56691203,1992.6,1991.6,0.54057522]
[1772518439837,0.00628983,1992.6,1991.6,0.54057522]
[1772518440736,0.56691203,1992.6,1991.6,0.54057522]
[1772518442840,0.56493254,1992.5,1991.6,0.54057522]
[1772518443136,0.5606222,1992.5,1991.6,0.54057522]
[1772518445139,0.00628983,1992.6,1991.6,0.54057522]
[1772518445333,0.5606222,1993.3,1992.0,0.54057522]
[1772518445534,0.25088,1993.5,1992.0,0.54057522]
[1772518445535,0.5606222,1993.1,1992.0,0.54057522]
[1772518446138,0.5606222,1992.7,1992.0,0.54057522]
[1772518446344,0.56624472,1992.7,1992.0,0.54057522]
[1772518446833,0.56493254,1992.6,1992.0,0.54057522]
[1772518447030,0.00562252,1992.7,1992.0,0.54057522]
[1772518447031,0.56624472,1992.7,1992.0,0.54057522]
[1772518447236,0.57055506,1992.7,1992.0,0.54057522]
[1772518449041,0.00562252,1992.7,1992.0,0.54057522]
[1772518453042,0.5606222,1993.1,1992.0,0.54057522]
[1772518453741,0.56493254,1993.1,1992.0,0.54057522]
[1772518454138,0.57140023,1993.1,1992.0,0.54057522]
[1772518455437,0.00646769,1993.1,1992.2,0.54057522]
[1772518456639,0.5606222,1993.6,1992.4,0.54057522]
[1772518456936,1.512,1994.0,1992.6,0.54057522]
[1772518456937,0.5606222,1993.9,1992.6,0.54057522]
[1772518457540,0.5655708,1993.9,1992.6,0.54604134]
[1772518457941,0.5655708,1993.9,1992.8,0.58192007]
[1772518458339,0.56988114,1993.9,1993.0,0.58192007]
[1772518458546,0.0049486,1993.9,1993.0,0.58192007]
[1772518459446,1.76274,1994.7,1993.2,0.58192007]
[1772518459447,0.57291439,1994.3,1993.2,0.58192007]
[1772518459646,0.57291439,1994.3,1993.4,0.58192007]
[1772518460344,0.5777807,1994.3,1993.4,0.58192007]
[1772518460545,0.00431034,1994.0,1993.6,0.58192007]
[1772518460746,0.57291439,1994.1,1993.6,0.58192007]
[1772518461243,0.57291439,1994.1,1992.9,1.48230518]
[1772518461551,0.57291439,1994.1,1993.1,0.58192007]
[1772518463747,0.57291439,1994.1,1992.6,0.25645612]
[1772518463748,0.57291439,1993.9,1992.6,0.25645612]
[1772518463950,0.57291439,1993.9,1992.9,0.58192007]
[1772518464448,0.57291439,1993.7,1992.9,0.58192007]
[1772518464648,0.57291439,1993.5,1992.6,0.58738619]
[1772518465251,0.57291439,1993.5,1992.6,0.00546612]
[1772518465957,0.57291439,1993.5,1992.6,0.58738619]
[1772518467554,0.25081,1994.1,1992.6,0.58738619]
[1772518467555,0.57291439,1994.0,1992.6,0.58738619]
[1772518467755,0.57291439,1994.0,1992.8,0.58192007]
[1772518467956,0.57291439,1994.0,1992.9,0.58192007]
[1772518471660,0.57291439,1993.9,1992.9,0.58192007]
[1772518472557,1.512,1994.0,1992.9,0.58192007]
[1772518472763,0.57291439,1994.1,1992.9,0.58192007]
[1772518472965,0.57291439,1994.0,1992.9,0.58192007]
[1772518473564,1.512,1994.1,1992.9,0.58192007]
[1772518473565,0.57291439,1993.8,1992.9,0.58192007]
[1772518474267,0.57291439,1993.8,1992.7,0.58192007]
[1772518474766,0.25083,1993.9,1992.7,0.58192007]
[1772518474767,0.57291439,1993.6,1992.7,0.58192007]
[1772518483676,0.57291439,1993.5,1992.7,0.58192007]
[1772518484878,0.57291439,1993.2,1992.6,0.00546612]
[1772518486978,0.57291439,1993.2,1992.6,0.58738619]
[1772518487279,0.57291439,1993.3,1992.6,0.58738619]
[1772518488677,0.58264693,1993.7,1992.6,0.58738619]
[1772518488877,0.58264693,1993.7,1992.8,0.57482071]
[1772518490284,0.58264693,1994.1,1992.8,0.57482071]
[1772518490479,0.58264693,1994.1,1993.1,0.57482071]
[1772518490780,0.58264693,1994.1,1993.2,0.57482071]
[1772518490981,0.58264693,1994.1,1993.4,0.57482071]
[1772518494574,0.58264693,1994.1,1993.1,0.57482071]
[1772518496082,0.58751324,1994.3,1993.4,0.57482071]
[1772518498280,0.00486631,1994.3,1993.7,0.57482071]
[1772518498486,0.58751324,1994.3,1993.7,0.57482071]
[1772518499585,0.58751324,1994.3,1993.5,7.14782071]
[1772518499786,0.58751324,1994.3,1993.6,0.57482071]
[1772518500294,0.58751324,1994.3,1993.4,0.57482071]
[1772518500791,0.58264693,1994.1,1993.2,0.57482071]
[1772518501985,1.512,1994.2,1993.4,0.57482071]
[1772518503394,0.58264693,1994.1,1993.6,0.57482071]
[1772518503589,0.58264693,1994.1,1993.3,1.4794155]
[1772518503795,0.58264693,1994.1,1993.4,0.57482071]
[1772518504194,0.58264693,1994.1,1993.2,0.57482071]
[1772518505490,0.25081,1993.8,1993.0,0.57482071]
[1772518505690,0.58264693,1993.7,1993.0,0.57482071]
[1772518505890,1.4794155,1994.0,1992.7,0.57482071]
[1772518505891,0.58264693,1993.5,1992.7,0.57482071]
[1772518507696,0.58264693,1993.5,1992.6,7.15228683]
[1772518508097,0.58264693,1993.5,1992.7,0.57482071]
[1772518509393,0.58264693,1993.5,1992.6,0.00546612]
[1772518510097,0.58264693,1993.5,1992.6,0.58028683]
[1772518511899,0.58264693,1993.5,1992.7,0.57482071]
[1772518512101,0.58264693,1994.0,1992.7,0.57482071]
[1772518512800,0.25078,1994.1,1992.6,1.48488162]
[1772518512801,0.83342693,1994.1,1993.0,0.57482071]
[1772518512997,0.58264693,1994.0,1993.1,0.57482071]
[1772518521906,0.54256183,1993.9,1992.7,0.57566558]
[1772518522106,0.54256183,1993.8,1992.7,0.57566558]
[1772518522809,1.512,1993.9,1993.0,0.57566558]
[1772518524199,0.54256183,1994.2,1993.3,0.57566558]
[1772518524403,0.54256183,1994.2,1993.4,0.57566558]
[1772518524804,0.00486631,1994.3,1993.4,0.57566558]
[1772518525106,0.00486631,1994.3,1993.6,0.57566558]
[1772518525508,0.54742814,1994.3,1993.6,0.57566558]
[1772518527208,0.00486631,1994.3,1993.6,0.57566558]
[1772518527512,0.54256183,1995.1,1993.6,0.57566558]
[1772518528211,0.54256183,1995.0,1993.6,0.57566558]
[1772518528407,0.54721407,1995.0,1993.6,0.57566558]
[1772518535612,0.54256183,1994.8,1993.6,0.57566558]
[1772518535819,0.54256183,1994.3,1993.1,0.57566558]
[1772518536313,0.25079,1994.0,1993.2,0.57566558]
[1772518536614,6.16803,1994.5,1993.2,0.57566558]
[1772518536615,0.54256183,1993.9,1993.2,0.57566558]
[1772518539914,0.54256183,1993.9,1993.0,0.57566558]
[1772518546219,0.54256183,1993.9,1993.2,0.57566558]
[1772518547521,0.54256183,1993.9,1992.9,6.572]
[1772518547522,0.54256183,1993.9,1993.0,0.57566558]
[1772518548820,0.54555829,1993.5,1992.7,0.59632472]
[1772518549125,0.54555829,1993.4,1992.6,0.60179084]
[1772518549725,0.54555829,1993.2,1992.6,0.51204215]
[1772518550025,0.54555829,1993.2,1992.1,6.573]
[1772518550026,0.54555829,1993.2,1992.3,0.59632472]
[1772518550626,1.51804286,1993.5,1992.6,0.59632472]
[1772518550827,2.06360115,1993.5,1992.6,0.60152458]
[1772518551728,0.00604286,1993.5,1992.9,0.59632472]
[1772518553225,0.55160115,1993.5,1992.9,0.59632472]
[1772518554229,0.55160115,1993.5,1992.7,0.59632472]
[1772518555527,0.00604286,1993.5,1992.7,0.59632472]
[1772518555726,0.55160115,1993.5,1992.7,0.59632472]
[1772518556430,0.55160115,1993.5,1992.6,0.00519986]
[1772518556729,0.54555829,1993.4,1992.6,0.60152458]
[1772518556925,0.54555829,1993.4,1992.6,0.00519986]
[1772518560732,0.54555829,1993.2,1992.6,0.00519986]
[1772518560932,0.54555829,1993.2,1992.3,7.16932472]
[1772518561128,0.25088,1993.3,1992.4,0.59632472]
[1772518561335,1.51804286,1993.5,1992.4,0.59632472]
[1772518561336,0.54555829,1993.2,1992.4,0.59632472]
[1772518561936,0.54555829,1993.2,1992.4,0.60153201]
[1772518562637,0.54555829,1993.0,1992.4,0.00520729]
[1772518565536,0.54555829,1992.8,1991.8,0.59632472]
[1772518565733,0.54555829,1992.6,1991.6,0.59632472]
[1772518566438,0.54555829,1992.6,1991.6,0.60096985]
[1772518566638,0.54555829,1992.4,1991.6,0.60096985]
[1772518568841,1.512,1992.7,1991.6,0.60096985]
[1772518569435,1.512,1992.7,1991.7,0.59632472]
[1772518570741,0.54555829,1992.8,1991.7,0.59632472]
[1772518576548,0.54555829,1992.5,1991.7,0.59632472]
[1772518576743,0.54555829,1992.5,1991.6,0.00464513]
[1772518577048,0.54555829,1992.5,1991.6,0.60096985]
[1772518580548,0.61808424,1992.3,1991.6,0.60096985]
[1772518582549,0.61808424,1992.3,1991.6,0.00464513]
[1772518583446,0.61808424,1992.3,1990.6,13.15272625]
[1772518583447,0.61808424,1991.7,1990.9,0.59758386]
[1772518583652,0.61808424,1991.7,1990.3,15.60705392]
[1772518583653,0.61808424,1991.3,1990.7,0.59758386]
[1772518584251,0.61808424,1991.3,1990.2,6.576]
[1772518584452,0.62184459,1991.3,1990.3,0.59758386]
[1772518587552,0.61808424,1991.1,1990.3,0.59758386]
[1772518588555,0.61808424,1990.9,1990.2,0.00613815]
[1772518588755,0.61808424,1990.9,1990.2,0.60372201]
[1772518588956,0.61808424,1991.2,1990.2,0.60372201]
[1772518595867,0.62184459,1991.3,1990.2,0.60372201]
[1772518598667,0.00376035,1991.3,1990.5,0.59758386]
[1772518598866,0.00376035,1991.3,1990.6,0.59758386]
[1772518599968,0.62184459,1991.3,1990.6,0.59758386]
[1772518600977,0.61808424,1991.9,1990.6,0.59758386]
[1772518602076,0.62375455,1991.9,1990.6,0.59758386]
[1772518606771,0.62375455,1991.9,1990.9,0.59758386]
[1772518606975,0.61808424,1992.1,1991.3,0.59758386]
[1772518607178,0.61808424,1992.1,1991.5,0.59758386]
[1772518608078,0.62367437,1992.1,1991.5,0.59758386]
[1772518612581,0.25662013,1992.1,1990.7,0.67591459]
[1772518612785,0.6979578,1992.0,1991.0,0.67591459]
[1772518614888,0.6979578,1991.9,1991.0,0.67591459]
[1772518615685,0.6979578,1991.9,1990.9,0.67591459]
[1772518619788,0.6979578,1991.9,1990.8,6.576]
[1772518619789,0.6979578,1991.9,1991.1,0.67591459]
[1772518621589,0.70354793,1992.1,1991.1,0.67591459]
[1772518621792,0.70354793,1992.1,1991.4,0.67591459]
[1772518621990,0.00559013,1992.1,1991.5,0.67591459]
[1772518622393,0.6979578,1992.4,1991.5,0.67591459]
[1772518622985,6.17264,1993.1,1991.5,0.67591459]
[1772518622986,4.12277121,1993.3,1992.2,0.67591459]
[1772518623186,0.6979578,1993.5,1992.8,0.67591459]
[1772518623388,0.7020671,1993.5,1993.0,0.67591459]
[1772518623996,0.7020671,1993.5,1992.8,7.2581873]
[1772518624200,0.7020671,1993.5,1991.4,33.17705392]
[1772518624201,0.7020671,1993.5,1992.7,6.56619206]
[1772518624501,0.7020671,1993.5,1992.7,6.577]
[1772518624887,0.7020671,1993.5,1992.5,0.67591459]
[1772518625089,0.7020671,1993.5,1992.6,6.577]
[1772518625286,0.7020671,1993.5,1992.6,6.58143749]
[1772518626493,0.7020671,1993.5,1992.6,7.25735208]
[1772518627499,0.7020671,1993.5,1992.7,0.67591459]
[1772518630692,0.7020671,1993.5,1992.8,6.577]
[1772518631900,0.7020671,1993.5,1992.6,0.00443749]
[1772518632096,0.7020671,1993.5,1992.7,6.576]
[1772518633796,0.6979578,1993.4,1992.7,6.576]
[1772518634702,0.6979578,1993.2,1992.6,0.00443749]
[1772518636802,0.6979578,1993.1,1992.6,0.00443749]
[1772518637404,0.6979578,1993.1,1992.6,0.68035208]
[1772518637907,0.6979578,1993.1,1992.6,0.00443749]
[1772518638505,0.6979578,1993.1,1992.6,0.75017858]
[1772518639303,0.7164473,1992.9,1992.4,0.74574109]
[1772518640406,0.7164473,1992.9,1992.4,0.75110715]
[1772518640806,0.0041093,1993.5,1992.5,0.99672109]
[1772518641007,0.25079,1994.0,1992.9,0.74574109]
[1772518641008,0.7164473,1993.7,1992.9,0.74574109]
[1772518641206,0.7164473,1993.7,1993.0,0.74574109]
[1772518641509,0.7164473,1993.7,1992.5,7.42434459]
[1772518641510,0.7164473,1993.7,1993.1,7.32174109]
[1772518641700,0.7164473,1993.7,1993.1,0.74574109]
[1772518641903,0.72266991,1993.7,1993.1,0.74574109]
[1772518644504,0.72266991,1993.7,1993.3,0.74574109]
[1772518644711,0.72266991,1993.7,1992.6,0.74574109]
[1772518645013,0.72266991,1993.7,1992.8,0.74574109]
[1772518645309,0.7164473,1993.5,1992.6,0.74574109]
[1772518645516,0.7164473,1993.3,1992.7,5.44914696]
[1772518645707,0.7164473,1993.3,1992.7,4.88275707]
[1772518645911,0.7164473,1993.3,1992.6,0.74574109]
[1772518647009,0.7164473,1993.6,1992.6,0.74574109]
[1772518647403,0.7164473,1993.6,1992.8,0.74574109]
[1772518651314,0.7164473,1993.6,1992.7,6.575]
[1772518651516,0.7164473,1993.6,1992.6,0.74574109]
[1772518651718,0.7164473,1993.4,1992.6,7.32074109]
[1772518652013,0.7164473,1993.4,1992.7,0.74574109]
[1772518654117,0.7164473,1993.2,1992.5,0.74574109]
[1772518654815,0.7164473,1993.2,1992.4,6.58036606]
[1772518655516,0.7164473,1993.0,1992.1,0.74574109]
[1772518655719,0.7164473,1992.8,1992.1,0.74574109]
[1772518656519,0.7164473,1992.8,1992.1,0.75007451]
[1772518659419,0.7164473,1993.0,1992.1,0.75007451]
[1772518659719,0.7164473,1993.2,1992.1,0.75007451]
[1772518659920,0.7164473,1993.2,1992.4,0.74574109]
[1772518660119,0.7164473,1993.9,1993.2,0.74574109]
[1772518660425,0.7164473,1993.9,1993.4,0.74574109]